[Event "*** Titled Tuesday Blitz"]
[Site "Chess.com"]
[Date "2019.01.01"]
[Round "9"]
[White "Bryakin_Mikhail"]
[Black "Blitzstream"]
[Result "0-1"]
[WhiteElo "2679"]
[BlackElo "2575"]
[TimeControl "180+2"]
[EndTime "15:07:27 PST"]
[Termination "Blitzstream won by resignation"]

1. d4 {[%clk 0:02:59.3]} 1... g6 {[%clk 0:03:00.9]} 2. c4 {[%clk 0:03:00.3]}
2... Bg7 {[%clk 0:03:01.7]} 3. Nc3 {[%clk 0:03:01.8]} 3... d6 {[%clk 0:03:02.9]}
4. e4 {[%clk 0:03:02.2]} 4... e6 {[%clk 0:03:04]} 5. Be3 {[%clk 0:02:58.4]} 5...
b6 {[%clk 0:03:05.2]} 6. Bd3 {[%clk 0:02:58.1]} 6... Bb7 {[%clk 0:03:06.3]} 7.
Nge2 {[%clk 0:02:59.5]} 7... Ne7 {[%clk 0:03:07.3]} 8. f3 {[%clk 0:03:00.9]}
8... Nd7 {[%clk 0:03:08.4]} 9. Qd2 {[%clk 0:03:02.5]} 9... h6 {[%clk 0:03:08.3]}
10. h4 {[%clk 0:03:03.5]} 10... a6 {[%clk 0:03:08.9]} 11. a4 {[%clk 0:03:01.5]}
11... c5 {[%clk 0:03:02.2]} 12. d5 {[%clk 0:02:47.5]} 12... Ne5 {[%clk 0:02:56]}
13. Nc1 {[%clk 0:02:23.3]} 13... exd5 {[%clk 0:02:42.5]} 14. cxd5 {[%clk
0:02:18.3]} 14... Qd7 {[%clk 0:02:19.9]} 15. Be2 {[%clk 0:01:59]} 15... O-O-O
{[%clk 0:02:19.8]} 16. h5 {[%clk 0:00:56.4]} 16... g5 {[%clk 0:02:19]} 17. g4
{[%clk 0:00:51.4]} 17... Rhe8 {[%clk 0:02:11.3]} 18. O-O {[%clk 0:00:51.7]}
18... Ng8 {[%clk 0:01:53.8]} 19. Kh2 {[%clk 0:00:43.5]} 19... Nf6 {[%clk
0:01:53.2]} 20. Kg3 {[%clk 0:00:45]} 20... Kb8 {[%clk 0:01:44.6]} 21. Rb1 {[%clk
0:00:46.1]} 21... Bc8 {[%clk 0:01:44.8]} 22. Qd1 {[%clk 0:00:44.6]} 22... Nxh5+
{[%clk 0:01:44.4]} 23. Kf2 {[%clk 0:00:31]} 23... Nf4 {[%clk 0:01:37.6]} 24. b4
{[%clk 0:00:32.3]} 24... c4 {[%clk 0:01:34.8]} 25. Bxb6 {[%clk 0:00:23.7]} 25...
Ned3+ {[%clk 0:01:35.5]} 26. Nxd3 {[%clk 0:00:19.6]} 26... cxd3 {[%clk
0:01:35.9]} 27. Bxd3 {[%clk 0:00:20]} 27... Bxc3 {[%clk 0:01:36.5]} 28. Bxd8
{[%clk 0:00:18.7]} 28... Qxd8 {[%clk 0:01:34]} 29. a5 {[%clk 0:00:18.1]} 29...
Qf6 {[%clk 0:01:28.8]} 30. Bc4 {[%clk 0:00:16.7]} 30... Bd4+ {[%clk 0:01:17.1]}
31. Ke1 {[%clk 0:00:18.1]} 31... Be3 {[%clk 0:01:10.9]} 32. Qb3 {[%clk
0:00:15.3]} 32... Bd7 {[%clk 0:01:10.2]} 33. Kd1 {[%clk 0:00:11.9]} 33... Qd4+
{[%clk 0:01:09]} 0-1

[Event "*** Titled Tuesday Blitz"]
[Site "Chess.com"]
[Date "2019.01.01"]
[Round "9"]
[White "GremioPrudente"]
[Black "aa175"]
[Result "0-1"]
[WhiteElo "2021"]
[BlackElo "1936"]
[TimeControl "180+2"]
[EndTime "15:07:27 PST"]
[Termination "aa175 won on time"]

1. Nf3 {[%clk 0:03:01.9]} 1... Nf6 {[%clk 0:02:59.4]} 2. c4 {[%clk 0:03:01.5]}
2... g6 {[%clk 0:03:01.3]} 3. b3 {[%clk 0:03:01.4]} 3... Bg7 {[%clk 0:02:51.9]}
4. Bb2 {[%clk 0:03:03.3]} 4... O-O {[%clk 0:02:52.9]} 5. g3 {[%clk 0:03:00.5]}
5... c6 {[%clk 0:02:53.6]} 6. Bg2 {[%clk 0:03:01]} 6... d5 {[%clk 0:02:54.5]} 7.
cxd5 {[%clk 0:03:01.6]} 7... Nxd5 {[%clk 0:02:52.9]} 8. Bxg7 {[%clk 0:03:02]}
8... Kxg7 {[%clk 0:02:54.8]} 9. O-O {[%clk 0:03:02.4]} 9... Qd6 {[%clk
0:02:46.2]} 10. Nc3 {[%clk 0:03:00.7]} 10... Nxc3 {[%clk 0:02:47]} 11. dxc3
{[%clk 0:03:01.2]} 11... Rd8 {[%clk 0:02:48.9]} 12. Qxd6 {[%clk 0:02:49.1]}
12... Rxd6 {[%clk 0:02:50.8]} 13. Rfd1 {[%clk 0:02:49.5]} 13... Be6 {[%clk
0:02:48.8]} 14. Ng5 {[%clk 0:02:42.1]} 14... Nd7 {[%clk 0:02:43.3]} 15. Nxe6+
{[%clk 0:02:39.4]} 15... fxe6 {[%clk 0:02:40.8]} 16. Bh3 {[%clk 0:02:35.3]}
16... Kf6 {[%clk 0:02:39.9]} 17. Rd3 {[%clk 0:02:15.8]} 17... Rxd3 {[%clk
0:02:29.1]} 18. exd3 {[%clk 0:02:16.6]} 18... Ne5 {[%clk 0:02:31]} 19. d4 {[%clk
0:02:13]} 19... Nf7 {[%clk 0:02:30.3]} 20. Re1 {[%clk 0:02:12.2]} 20... Ng5
{[%clk 0:02:30]} 21. Bg2 {[%clk 0:02:05.8]} 21... Nf7 {[%clk 0:02:30.4]} 22. f4
{[%clk 0:02:03.4]} 22... Nd6 {[%clk 0:02:27.8]} 23. Bh3 {[%clk 0:01:54]} 23...
Nf5 {[%clk 0:02:24.3]} 24. Kf2 {[%clk 0:01:51.5]} 24... c5 {[%clk 0:02:12.1]}
25. dxc5 {[%clk 0:01:48.5]} 25... Rd8 {[%clk 0:02:11.5]} 26. g4 {[%clk
0:01:35.8]} 26... Ng7 {[%clk 0:02:05.1]} 27. g5+ {[%clk 0:01:36.4]} 27... Kf7
{[%clk 0:02:04.7]} 28. Ke2 {[%clk 0:01:26.5]} 28... Rd5 {[%clk 0:02:00.3]} 29.
b4 {[%clk 0:01:23.9]} 29... Nh5 {[%clk 0:01:59.1]} 30. Kf1 {[%clk 0:01:17.2]}
30... Nxf4 {[%clk 0:01:59]} 31. Bg4 {[%clk 0:01:05.8]} 31... Rxg5 {[%clk
0:01:59]} 32. h3 {[%clk 0:01:05.4]} 32... h5 {[%clk 0:01:58.9]} 33. Re4 {[%clk
0:01:01.9]} 33... hxg4 {[%clk 0:01:55.8]} 34. Rxf4+ {[%clk 0:01:02.2]} 34... Rf5
{[%clk 0:01:54.7]} 35. Rxf5+ {[%clk 0:01:02]} 35... gxf5 {[%clk 0:01:56.6]} 36.
hxg4 {[%clk 0:01:01.6]} 36... fxg4 {[%clk 0:01:58.5]} 37. b5 {[%clk 0:01:00.8]}
37... e5 {[%clk 0:01:58.4]} 38. a4 {[%clk 0:00:59.7]} 38... e4 {[%clk
0:01:58.4]} 39. a5 {[%clk 0:01:00.6]} 39... Ke6 {[%clk 0:01:56.8]} 40. a6 {[%clk
0:01:01.7]} 40... bxa6 {[%clk 0:01:56.2]} 41. b6 {[%clk 0:01:02.9]} 41... axb6
{[%clk 0:01:54.6]} 42. cxb6 {[%clk 0:01:04]} 42... Kd6 {[%clk 0:01:55.9]} 43. b7
{[%clk 0:01:05.1]} 43... Kc7 {[%clk 0:01:57]} 0-1

[Event "*** Titled Tuesday Blitz"]
[Site "Chess.com"]
[Date "2019.01.01"]
[Round "9"]
[White "Paralinch"]
[Black "TigranLPetrosyan"]
[Result "1/2-1/2"]
[WhiteElo "2925"]
[BlackElo "2857"]
[TimeControl "180+2"]
[EndTime "15:07:29 PST"]
[Termination "Game drawn by agreement"]

1. e4 {[%clk 0:02:59.9]} 1... g6 {[%clk 0:02:58.5]} 2. d4 {[%clk 0:03:00.2]}
2... Bg7 {[%clk 0:03:00.4]} 3. Nf3 {[%clk 0:02:55.7]} 3... d6 {[%clk 0:03:00.5]}
4. c3 {[%clk 0:02:56.1]} 4... Nf6 {[%clk 0:03:00.6]} 5. Bd3 {[%clk 0:02:57.3]}
5... O-O {[%clk 0:03:02.2]} 6. O-O {[%clk 0:02:58.1]} 6... Nc6 {[%clk
0:03:03.7]} 7. Nbd2 {[%clk 0:02:58.8]} 7... e5 {[%clk 0:03:05.2]} 8. Re1 {[%clk
0:02:56.8]} 8... Nh5 {[%clk 0:03:01.3]} 9. Nb3 {[%clk 0:02:56.5]} 9... h6 {[%clk
0:02:52.5]} 10. h3 {[%clk 0:02:45.6]} 10... Qf6 {[%clk 0:02:50.3]} 11. Be3
{[%clk 0:02:45.8]} 11... Nf4 {[%clk 0:02:42.7]} 12. Bf1 {[%clk 0:02:46.6]} 12...
g5 {[%clk 0:02:37.4]} 13. Nbd2 {[%clk 0:02:42.2]} 13... Bd7 {[%clk 0:02:33.9]}
14. Kh2 {[%clk 0:02:19.4]} 14... Qg6 {[%clk 0:02:27.1]} 15. g3 {[%clk
0:02:13.9]} 15... Nh5 {[%clk 0:02:18.7]} 16. dxe5 {[%clk 0:02:07.4]} 16... Nxe5
{[%clk 0:02:16.4]} 17. Nxe5 {[%clk 0:01:58]} 17... dxe5 {[%clk 0:02:18.3]} 18.
Qe2 {[%clk 0:01:44.2]} 18... g4 {[%clk 0:02:15.3]} 19. Rad1 {[%clk 0:01:38.3]}
19... Rad8 {[%clk 0:02:03.7]} 20. h4 {[%clk 0:01:34]} 20... Bc6 {[%clk
0:01:58.4]} 21. Bg2 {[%clk 0:01:33.4]} 21... Nf6 {[%clk 0:01:53.9]} 22. Qc4
{[%clk 0:01:26.4]} 22... Rfe8 {[%clk 0:01:50.9]} 23. Bxa7 {[%clk 0:01:22]} 23...
Nh5 {[%clk 0:01:26.4]} 24. Be3 {[%clk 0:01:17.9]} 24... Qf6 {[%clk 0:01:27.6]}
25. Nb3 {[%clk 0:01:14.2]} 25... Rxd1 {[%clk 0:01:22.7]} 26. Rxd1 {[%clk
0:01:16.1]} 26... Nf4 {[%clk 0:01:24.1]} 27. Bh1 {[%clk 0:01:04.2]} 27... Ra8
{[%clk 0:01:14.3]} 28. Nc5 {[%clk 0:01:01.3]} 28... Kh7 {[%clk 0:00:59.8]} 29.
Nd7 {[%clk 0:00:57.5]} 29... Qe6 {[%clk 0:00:57]} 30. Qxe6 {[%clk 0:00:42.9]}
30... Nxe6 {[%clk 0:00:58.9]} 31. Nc5 {[%clk 0:00:41.6]} 31... Rxa2 {[%clk
0:00:52.8]} 32. Nxe6 {[%clk 0:00:40.7]} 32... fxe6 {[%clk 0:00:54.7]} 33. Rd2
{[%clk 0:00:41.7]} 33... h5 {[%clk 0:00:56]} 34. f3 {[%clk 0:00:41.1]} 1/2-1/2

[Event "*** Titled Tuesday Blitz"]
[Site "Chess.com"]
[Date "2019.01.01"]
[Round "9"]
[White "MissingLife"]
[Black "pandamaster3000"]
[Result "1-0"]
[WhiteElo "2433"]
[BlackElo "2213"]
[TimeControl "180+2"]
[EndTime "15:07:34 PST"]
[Termination "MissingLife won by checkmate"]

1. Nf3 {[%clk 0:02:31.3]} 1... Nf6 {[%clk 0:02:59.8]} 2. g3 {[%clk 0:02:32]}
2... g6 {[%clk 0:03:00.5]} 3. Bg2 {[%clk 0:02:32.9]} 3... Bg7 {[%clk 0:03:02.4]}
4. O-O {[%clk 0:02:31.9]} 4... O-O {[%clk 0:03:04.3]} 5. d3 {[%clk 0:02:31.9]}
5... d6 {[%clk 0:03:04.4]} 6. Nbd2 {[%clk 0:02:31.9]} 6... Nc6 {[%clk
0:03:04.5]} 7. e4 {[%clk 0:02:33.8]} 7... e5 {[%clk 0:03:05.6]} 8. a3 {[%clk
0:02:09.7]} 8... a5 {[%clk 0:03:03.8]} 9. Rb1 {[%clk 0:02:10.3]} 9... a4 {[%clk
0:03:04.2]} 10. b4 {[%clk 0:02:11.7]} 10... axb3 {[%clk 0:03:05.2]} 11. cxb3
{[%clk 0:02:12.4]} 11... Re8 {[%clk 0:03:06.3]} 12. b4 {[%clk 0:02:13.6]} 12...
Bg4 {[%clk 0:03:05.1]} 13. h3 {[%clk 0:02:13.4]} 13... Bxf3 {[%clk 0:03:05.4]}
14. Nxf3 {[%clk 0:02:15.1]} 14... d5 {[%clk 0:03:06.5]} 15. exd5 {[%clk
0:02:04.9]} 15... Nxd5 {[%clk 0:03:08.4]} 16. Bb2 {[%clk 0:02:06]} 16... Qd7
{[%clk 0:03:00.8]} 17. Re1 {[%clk 0:02:06.4]} 17... Nd4 {[%clk 0:02:44.4]} 18.
Nxd4 {[%clk 0:01:55.5]} 18... exd4 {[%clk 0:02:44.7]} 19. Qb3 {[%clk 0:01:51.5]}
19... c6 {[%clk 0:02:42.9]} 20. Qc4 {[%clk 0:01:47]} 20... Nc3 {[%clk
0:02:34.5]} 21. Ra1 {[%clk 0:01:41.1]} 21... Rxe1+ {[%clk 0:02:27.8]} 22. Rxe1
{[%clk 0:01:41.3]} 22... Re8 {[%clk 0:02:29.3]} 23. Rxe8+ {[%clk 0:01:26]} 23...
Qxe8 {[%clk 0:02:31.2]} 24. Bf3 {[%clk 0:01:21.6]} 24... h5 {[%clk 0:02:02.9]}
25. h4 {[%clk 0:01:21.8]} 25... Qe1+ {[%clk 0:02:01.2]} 26. Kg2 {[%clk 0:01:23]}
26... Qd2 {[%clk 0:01:59.6]} 27. Ba1 {[%clk 0:01:12.4]} 27... Qc1 {[%clk
0:01:53.7]} 28. Bxc3 {[%clk 0:01:10.1]} 28... dxc3 {[%clk 0:01:55.6]} 29. Be4
{[%clk 0:01:11.1]} 29... Qe1 {[%clk 0:01:48.8]} 30. Bxg6 {[%clk 0:01:10.2]}
30... Qe7 {[%clk 0:01:37]} 31. Bxh5 {[%clk 0:01:08.4]} 31... Qd7 {[%clk
0:01:33.6]} 32. Bg4 {[%clk 0:01:00.9]} 32... Qd6 {[%clk 0:01:25.4]} 33. Bh5
{[%clk 0:00:49.6]} 33... b5 {[%clk 0:01:17.7]} 34. Qxf7+ {[%clk 0:00:49.6]}
34... Kh8 {[%clk 0:01:17.2]} 35. Qe8+ {[%clk 0:00:44.8]} 35... Kh7 {[%clk
0:01:17.7]} 36. Qe2 {[%clk 0:00:31.7]} 36... c5 {[%clk 0:01:16.1]} 37. Bf3
{[%clk 0:00:29.2]} 37... cxb4 {[%clk 0:01:13.8]} 38. Be4+ {[%clk 0:00:30.8]}
38... Kh8 {[%clk 0:01:08.3]} 39. axb4 {[%clk 0:00:32.7]} 39... Qxb4 {[%clk
0:01:09.3]} 40. Qh5+ {[%clk 0:00:33.3]} 40... Kg8 {[%clk 0:01:09.9]} 41. Bd5+
{[%clk 0:00:34.6]} 41... Kf8 {[%clk 0:01:07]} 42. Qf7# {[%clk 0:00:36.1]} 1-0

[Event "*** Titled Tuesday Blitz"]
[Site "Chess.com"]
[Date "2019.01.01"]
[Round "9"]
[White "nitpicker"]
[Black "pedroholly22"]
[Result "0-1"]
[WhiteElo "2204"]
[BlackElo "2287"]
[TimeControl "180+2"]
[EndTime "15:07:38 PST"]
[Termination "pedroholly22 won on time"]

1. d4 {[%clk 0:03:01.9]} 1... Nf6 {[%clk 0:03:00.2]} 2. c4 {[%clk 0:03:02.7]}
2... g6 {[%clk 0:03:01.5]} 3. Nc3 {[%clk 0:03:03.2]} 3... Bg7 {[%clk 0:03:02.9]}
4. e4 {[%clk 0:03:03.7]} 4... d6 {[%clk 0:03:04.3]} 5. Be2 {[%clk 0:03:04.3]}
5... O-O {[%clk 0:03:05.7]} 6. Bg5 {[%clk 0:03:05.5]} 6... c5 {[%clk 0:03:05.3]}
7. d5 {[%clk 0:03:06.2]} 7... Qa5 {[%clk 0:03:02.1]} 8. Qd2 {[%clk 0:02:52.8]}
8... a6 {[%clk 0:03:02.9]} 9. f4 {[%clk 0:02:42.9]} 9... b5 {[%clk 0:02:59.6]}
10. Nf3 {[%clk 0:02:28.8]} 10... b4 {[%clk 0:02:58.2]} 11. Bxf6 {[%clk
0:02:24.1]} 11... exf6 {[%clk 0:02:54.4]} 12. Nd1 {[%clk 0:02:21.8]} 12... f5
{[%clk 0:02:55.7]} 13. e5 {[%clk 0:02:13.7]} 13... dxe5 {[%clk 0:02:53.1]} 14.
Nxe5 {[%clk 0:02:08.5]} 14... Nd7 {[%clk 0:02:55]} 15. Nc6 {[%clk 0:02:07.9]}
15... Qc7 {[%clk 0:02:53.9]} 16. O-O {[%clk 0:02:06.6]} 16... Bb7 {[%clk
0:02:54.3]} 17. Bf3 {[%clk 0:02:03.2]} 17... Bxc6 {[%clk 0:02:43.6]} 18. dxc6
{[%clk 0:02:03.7]} 18... Bd4+ {[%clk 0:02:44.4]} 19. Kh1 {[%clk 0:02:02.2]}
19... Nb8 {[%clk 0:02:44.9]} 20. Ne3 {[%clk 0:01:59.2]} 20... Nxc6 {[%clk
0:02:40.8]} 21. Nd5 {[%clk 0:01:58]} 21... Qd6 {[%clk 0:02:37.9]} 22. Rae1
{[%clk 0:01:47.8]} 22... Rad8 {[%clk 0:02:35.6]} 23. Re2 {[%clk 0:01:40.8]}
23... a5 {[%clk 0:02:33.7]} 24. Rfe1 {[%clk 0:01:41.4]} 24... a4 {[%clk
0:02:33.1]} 25. a3 {[%clk 0:01:20.3]} 25... Rb8 {[%clk 0:02:24.7]} 26. h4 {[%clk
0:00:33.6]} 26... bxa3 {[%clk 0:02:23.9]} 27. bxa3 {[%clk 0:00:34.1]} 27... Rb2
{[%clk 0:02:22.2]} 28. Qd1 {[%clk 0:00:33.9]} 28... Qd8 {[%clk 0:02:14.1]} 29.
g3 {[%clk 0:00:30.3]} 29... Rb3 {[%clk 0:02:14.4]} 30. Ne7+ {[%clk 0:00:22.6]}
30... Nxe7 {[%clk 0:02:06.8]} 31. Rxe7 {[%clk 0:00:24.5]} 31... Rxa3 {[%clk
0:01:50.7]} 32. h5 {[%clk 0:00:22.8]} 32... Ra1 {[%clk 0:01:45.6]} 33. Qe2
{[%clk 0:00:19.3]} 33... a3 {[%clk 0:01:38.2]} 34. Ra7 {[%clk 0:00:15.7]} 34...
Qb8 {[%clk 0:01:29.1]} 35. Ra8 {[%clk 0:00:14.4]} 35... Rxe1+ {[%clk 0:01:26.7]}
36. Qxe1 {[%clk 0:00:13.6]} 36... Qxa8 {[%clk 0:01:26.8]} 37. Bxa8 {[%clk
0:00:13.6]} 37... Rxa8 {[%clk 0:01:28.1]} 0-1

[Event "*** Titled Tuesday Blitz"]
[Site "Chess.com"]
[Date "2019.01.01"]
[Round "9"]
[White "gmjlh"]
[Black "JozefKneht"]
[Result "1-0"]
[WhiteElo "2647"]
[BlackElo "2517"]
[TimeControl "180+2"]
[EndTime "15:07:45 PST"]
[Termination "gmjlh won by resignation"]

1. c4 {[%clk 0:03:01.9]} 1... e6 {[%clk 0:03:00]} 2. Nc3 {[%clk 0:02:57.5]} 2...
d5 {[%clk 0:03:00.6]} 3. e3 {[%clk 0:02:58.8]} 3... Nf6 {[%clk 0:03:00.7]} 4. g4
{[%clk 0:02:59.5]} 4... h6 {[%clk 0:02:48.7]} 5. h3 {[%clk 0:02:59.8]} 5... c5
{[%clk 0:02:48.6]} 6. cxd5 {[%clk 0:02:57.2]} 6... exd5 {[%clk 0:02:48]} 7. Bg2
{[%clk 0:02:54]} 7... Nc6 {[%clk 0:02:47.3]} 8. Nge2 {[%clk 0:02:54.5]} 8... d4
{[%clk 0:02:46.8]} 9. Ne4 {[%clk 0:02:55.2]} 9... Be7 {[%clk 0:02:25.4]} 10.
N2g3 {[%clk 0:02:51.7]} 10... O-O {[%clk 0:02:24]} 11. O-O {[%clk 0:02:48]}
11... Be6 {[%clk 0:02:18.2]} 12. d3 {[%clk 0:02:46.6]} 12... Nd5 {[%clk
0:02:14.7]} 13. Nf5 {[%clk 0:02:43.2]} 13... Bxf5 {[%clk 0:01:51.8]} 14. gxf5
{[%clk 0:02:43.6]} 14... Ne5 {[%clk 0:01:51.8]} 15. exd4 {[%clk 0:02:35.2]}
15... cxd4 {[%clk 0:01:51.7]} 16. Kh1 {[%clk 0:01:59.5]} 16... Nb4 {[%clk
0:01:49]} 17. Qh5 {[%clk 0:01:40.5]} 17... Kh7 {[%clk 0:01:47.6]} 18. Bd2 {[%clk
0:00:51.5]} 18... Nbxd3 {[%clk 0:01:47.3]} 19. f4 {[%clk 0:00:39.9]} 19... Nc4
{[%clk 0:01:47.5]} 20. Qe2 {[%clk 0:00:22.1]} 20... Nxd2 {[%clk 0:01:38.9]} 21.
Qxd3 {[%clk 0:00:21.7]} 21... Nxe4 {[%clk 0:01:39.2]} 22. Bxe4 {[%clk
0:00:21.3]} 22... Bf6 {[%clk 0:01:40]} 23. Rf2 {[%clk 0:00:21.7]} 23... Qd7
{[%clk 0:01:35.3]} 24. Kg2 {[%clk 0:00:22.4]} 24... Rac8 {[%clk 0:01:36.2]} 25.
Re1 {[%clk 0:00:22.9]} 25... Rc5 {[%clk 0:01:35.5]} 26. Ree2 {[%clk 0:00:20.8]}
26... b5 {[%clk 0:01:33.8]} 27. Rc2 {[%clk 0:00:21.8]} 27... Rfc8 {[%clk
0:01:34.2]} 28. Rxc5 {[%clk 0:00:23]} 28... Rxc5 {[%clk 0:01:35]} 29. Rc2 {[%clk
0:00:24.9]} 29... Qc7 {[%clk 0:01:35.5]} 30. Rxc5 {[%clk 0:00:25.1]} 30... Qxc5
{[%clk 0:01:36.5]} 31. Qc2 {[%clk 0:00:24]} 31... Qd6 {[%clk 0:01:37.4]} 32. Kf3
{[%clk 0:00:23.9]} 32... a5 {[%clk 0:01:37.5]} 33. a3 {[%clk 0:00:24.3]} 33...
b4 {[%clk 0:01:37.5]} 34. Qb3 {[%clk 0:00:22.9]} 34... bxa3 {[%clk 0:01:31.3]}
35. Qxf7 {[%clk 0:00:11.1]} 35... Qe7 {[%clk 0:01:26.8]} 36. Qxe7 {[%clk
0:00:11.6]} 36... Bxe7 {[%clk 0:01:26.9]} 37. f6+ {[%clk 0:00:13.2]} 37... Kg8
{[%clk 0:01:26.7]} 38. fxe7 {[%clk 0:00:14.2]} 38... Kf7 {[%clk 0:01:28]} 39.
bxa3 {[%clk 0:00:15.6]} 39... Kxe7 {[%clk 0:01:29.6]} 40. Bd3 {[%clk 0:00:16.9]}
40... Kf6 {[%clk 0:01:21.9]} 41. Ke4 {[%clk 0:00:17.4]} 41... g5 {[%clk
0:01:23.8]} 42. fxg5+ {[%clk 0:00:18.3]} 42... Kxg5 {[%clk 0:01:24.6]} 43. Kxd4
{[%clk 0:00:19.7]} 43... Kh4 {[%clk 0:01:26.2]} 44. Bf5 {[%clk 0:00:20.9]} 1-0

[Event "*** Titled Tuesday Blitz"]
[Site "Chess.com"]
[Date "2019.01.01"]
[Round "9"]
[White "viktorko131"]
[Black "Diwi89"]
[Result "0-1"]
[WhiteElo "2092"]
[BlackElo "2740"]
[TimeControl "180+2"]
[EndTime "15:07:47 PST"]
[Termination "Diwi89 won on time"]

1. e4 {[%clk 0:03:01.9]} 1... c5 {[%clk 0:02:52.8]} 2. Nf3 {[%clk 0:03:02.1]}
2... Nc6 {[%clk 0:02:50.3]} 3. d4 {[%clk 0:03:02.3]} 3... cxd4 {[%clk
0:02:50.7]} 4. Nxd4 {[%clk 0:03:04.2]} 4... Nf6 {[%clk 0:02:51.2]} 5. Nc3 {[%clk
0:03:05.4]} 5... e5 {[%clk 0:02:52.1]} 6. Ndb5 {[%clk 0:03:06.3]} 6... d6 {[%clk
0:02:52.3]} 7. Bg5 {[%clk 0:03:07.8]} 7... a6 {[%clk 0:02:52.9]} 8. Na3 {[%clk
0:03:09.5]} 8... b5 {[%clk 0:02:53.5]} 9. Nd5 {[%clk 0:03:11.1]} 9... Be7 {[%clk
0:02:54]} 10. Bxf6 {[%clk 0:03:12.5]} 10... Bxf6 {[%clk 0:02:54.8]} 11. c3
{[%clk 0:03:13.4]} 11... O-O {[%clk 0:02:54.1]} 12. Nc2 {[%clk 0:03:10.4]} 12...
Bg5 {[%clk 0:02:55.2]} 13. Nce3 {[%clk 0:02:55.6]} 13... Rb8 {[%clk 0:02:53.7]}
14. h4 {[%clk 0:02:33.1]} 14... Bxe3 {[%clk 0:02:50.7]} 15. Nxe3 {[%clk
0:02:32.3]} 15... Be6 {[%clk 0:02:52.4]} 16. Be2 {[%clk 0:02:26]} 16... b4
{[%clk 0:02:53.3]} 17. g3 {[%clk 0:02:16.5]} 17... bxc3 {[%clk 0:02:53.1]} 18.
bxc3 {[%clk 0:02:17.2]} 18... Qa5 {[%clk 0:02:54.5]} 19. O-O {[%clk 0:02:08.9]}
19... Rfd8 {[%clk 0:02:48.5]} 20. Bg4 {[%clk 0:01:52.1]} 20... Qc5 {[%clk
0:02:45.4]} 21. Bxe6 {[%clk 0:01:40]} 21... fxe6 {[%clk 0:02:47.3]} 22. Qg4
{[%clk 0:01:40.9]} 22... Re8 {[%clk 0:02:48.6]} 23. h5 {[%clk 0:01:37.6]} 23...
Rb7 {[%clk 0:02:41.8]} 24. Rab1 {[%clk 0:01:28]} 24... Rf7 {[%clk 0:02:42.2]}
25. Kg2 {[%clk 0:01:06.2]} 25... a5 {[%clk 0:02:34.2]} 26. h6 {[%clk 0:00:51.9]}
26... g6 {[%clk 0:02:35]} 27. Qe2 {[%clk 0:00:45.7]} 27... Ref8 {[%clk 0:02:28]}
28. Qc4 {[%clk 0:00:33.8]} 28... Qxc4 {[%clk 0:02:23.4]} 29. Nxc4 {[%clk
0:00:34.4]} 29... d5 {[%clk 0:02:24.9]} 30. Rb6 {[%clk 0:00:28.3]} 30... Rc7
{[%clk 0:02:23.8]} 31. Nd6 {[%clk 0:00:25.8]} 31... Rd8 {[%clk 0:01:57.2]} 32.
Nb5 {[%clk 0:00:15.8]} 32... Rcc8 {[%clk 0:01:58.4]} 33. Rd1 {[%clk 0:00:09.6]}
33... d4 {[%clk 0:01:58]} 34. f4 {[%clk 0:00:07.2]} 34... d3 {[%clk 0:01:46.3]}
35. Kf3 {[%clk 0:00:04.8]} 35... exf4 {[%clk 0:01:43.9]} 36. gxf4 {[%clk
0:00:05.4]} 36... e5 {[%clk 0:01:45.1]} 37. f5 {[%clk 0:00:04.9]} 37... a4
{[%clk 0:01:40.6]} 38. Rg1 {[%clk 0:00:03.9]} 38... Kf7 {[%clk 0:01:18.8]} 0-1

[Event "*** Titled Tuesday Blitz"]
[Site "Chess.com"]
[Date "2019.01.01"]
[Round "9"]
[White "aRk_iN"]
[Black "sunloong"]
[Result "0-1"]
[WhiteElo "2046"]
[BlackElo "1951"]
[TimeControl "180+2"]
[EndTime "15:07:47 PST"]
[Termination "sunloong won by resignation"]

1. e4 {[%clk 0:03:01.9]} 1... Nf6 {[%clk 0:03:01.9]} 2. e5 {[%clk 0:03:02.1]}
2... Nd5 {[%clk 0:03:03.3]} 3. d4 {[%clk 0:02:57.5]} 3... d6 {[%clk 0:03:04.4]}
4. Nf3 {[%clk 0:02:56.6]} 4... g6 {[%clk 0:03:04.4]} 5. Be2 {[%clk 0:02:53]}
5... Bg7 {[%clk 0:03:03.5]} 6. O-O {[%clk 0:02:52]} 6... O-O {[%clk 0:03:03.9]}
7. c4 {[%clk 0:02:45.2]} 7... Nb6 {[%clk 0:03:04.3]} 8. h3 {[%clk 0:01:59.6]}
8... Nc6 {[%clk 0:03:02.8]} 9. exd6 {[%clk 0:01:50.9]} 9... cxd6 {[%clk
0:03:04.7]} 10. b3 {[%clk 0:01:25.6]} 10... e5 {[%clk 0:03:04.8]} 11. dxe5
{[%clk 0:01:10.6]} 11... Nxe5 {[%clk 0:03:04]} 12. Nd4 {[%clk 0:01:03.4]} 12...
Nc6 {[%clk 0:02:58.2]} 13. Bb2 {[%clk 0:01:03.5]} 13... Qf6 {[%clk 0:02:49.2]}
14. Nxc6 {[%clk 0:00:33.1]} 14... Qxb2 {[%clk 0:02:49.5]} 15. Ne7+ {[%clk
0:00:33.3]} 15... Kh8 {[%clk 0:02:50.1]} 16. Nd2 {[%clk 0:00:33.4]} 16... Qxa1
{[%clk 0:02:47.6]} 17. Qxa1 {[%clk 0:00:34.1]} 17... Bxa1 {[%clk 0:02:49.1]} 18.
Rxa1 {[%clk 0:00:35.4]} 18... Be6 {[%clk 0:02:44.7]} 19. Bf3 {[%clk 0:00:32.7]}
19... Rfe8 {[%clk 0:02:37.3]} 20. Nd5 {[%clk 0:00:33]} 20... Bxd5 {[%clk
0:02:31.6]} 21. cxd5 {[%clk 0:00:34.9]} 21... Re5 {[%clk 0:02:25.5]} 22. Rc1
{[%clk 0:00:25.2]} 22... Rc8 {[%clk 0:01:56.5]} 23. Rxc8+ {[%clk 0:00:20.4]}
23... Nxc8 {[%clk 0:01:58.4]} 24. Kf1 {[%clk 0:00:21.5]} 24... b5 {[%clk
0:01:48.1]} 25. b4 {[%clk 0:00:12.2]} 25... f5 {[%clk 0:01:47.7]} 26. Nb3 {[%clk
0:00:12]} 26... Nb6 {[%clk 0:01:40.2]} 27. Nd4 {[%clk 0:00:12]} 27... Nxd5
{[%clk 0:01:22.5]} 28. Nc6 {[%clk 0:00:13.2]} 28... Nc3 {[%clk 0:01:10.7]} 29.
Nxe5 {[%clk 0:00:13.1]} 29... dxe5 {[%clk 0:01:12.6]} 30. Bc6 {[%clk 0:00:07.7]}
30... Nxa2 {[%clk 0:01:05.1]} 31. Bxb5 {[%clk 0:00:08.8]} 31... Nxb4 {[%clk
0:01:06]} 32. Ke2 {[%clk 0:00:10.2]} 32... Kg7 {[%clk 0:00:58.7]} 33. Kd2 {[%clk
0:00:11.2]} 33... Kf6 {[%clk 0:00:54.8]} 34. Kc3 {[%clk 0:00:12.4]} 34... Nd5+
{[%clk 0:00:52.8]} 35. Kc4 {[%clk 0:00:13.6]} 35... Nf4 {[%clk 0:00:51.5]} 0-1